fUST/lending_fUST_20240424
["ID","MTS","AMOUNT","RATE_DAILY","PERIOD"]
[323378811,1713953444724,-156.220205,0.000148,2]
[323378812,1713953444735,-270.350188,0.000148,2]
[323378813,1713953444745,-270.350188,0.000148,2]
[323378814,1713953444754,-270.350188,0.000148,2]
[323378815,1713953444763,-270.350188,0.000148,2]
[323378816,1713953444772,-270.350188,0.000148,2]
[323378817,1713953444781,-270.350188,0.000148,2]
[323378818,1713953444790,-270.350188,0.000148,2]
[323378819,1713953444799,-270.350188,0.000148,2]
[323378820,1713953444809,-270.350188,0.000148,2]
[323378821,1713953444820,-270.350188,0.000148,2]
[323378822,1713953444831,-270.350188,0.000148,2]
[323378823,1713953444840,-270.350188,0.000148,2]
[323378824,1713953444850,-151.0,0.000148,2]
[323378825,1713953444859,-152.171862,0.000148,2]
[323378826,1713953444869,-270.350188,0.000148,2]
[323378827,1713953444878,-270.350188,0.000148,2]
[323378828,1713953444887,-270.350188,0.000148,2]
[323378829,1713953444898,-270.350188,0.000148,2]
[323378830,1713953444907,-270.350188,0.000148,2]
[323378831,1713953444917,-270.350188,0.000148,2]
[323378832,1713953444926,-270.350188,0.000148,2]
[323378833,1713953444935,-270.350178,0.000148,2]
[323378834,1713953444944,-281.473771,0.000148,2]
[323378835,1713953444954,-520.627411,0.000148,2]
[323378836,1713953444963,-520.627411,0.000148,2]
[323378837,1713953444972,-520.627411,0.000148,2]
[323378838,1713953444981,-520.627411,0.000148,2]
[323378839,1713953444991,-520.627411,0.000148,2]
[323378840,1713953445001,-520.627411,0.000148,2]
[323378841,1713953445010,-520.627411,0.000148,2]
[323378842,1713953445019,-520.627411,0.000148,2]
[323378843,1713953445028,-520.627411,0.000148,2]
[323378844,1713953445036,-520.627411,0.000148,2]
[323378845,1713953445046,-520.627411,0.000148,2]
[323378846,1713953445055,-520.627411,0.000148,2]
[323378847,1713953445064,-520.627411,0.000148,2]
[323378848,1713953445074,-520.627411,0.000148,2]
[323378849,1713953445083,-520.627411,0.000148,2]
[323378850,1713953445092,-520.627411,0.000148,2]
[323378851,1713953445101,-520.627411,0.000148,2]
[323378852,1713953445110,-520.627411,0.000148,2]
[323378853,1713953445119,-520.627411,0.000148,2]
[323378854,1713953445129,-520.627403,0.000148,2]
[323378855,1713953445138,-151.0,0.000148,2]
[323378856,1713953445147,-278.85994,0.000148,2]
[323378857,1713953445157,-278.85994,0.000148,2]
[323378858,1713953445166,-151.0,0.000148,2]
[323378859,1713953445175,-278.85994,0.000148,2]
[323378860,1713953445184,-151.0,0.000148,2]
[323378861,1713953445193,-278.85994,0.000148,2]
[323378862,1713953445203,-278.85994,0.000148,2]
[323378863,1713953445212,-151.0,0.000148,2]
[323378864,1713953445222,-278.85994,0.000148,2]
[323378865,1713953445231,-278.85994,0.000148,2]
[323378866,1713953445243,-278.85994,0.000148,2]
[323378867,1713953445252,-278.85994,0.000148,2]
[323378868,1713953445261,-151.0,0.000148,2]
[323378869,1713953445271,-151.0,0.000148,2]
[323378870,1713953445280,-278.85994,0.000148,2]
[323378871,1713953445289,-151.0,0.000148,2]
[323378872,1713953445298,-278.85994,0.000148,2]
[323378873,1713953445307,-151.0,0.000148,2]
[323378874,1713953445316,-278.85994,0.000148,2]
[323378875,1713953445326,-278.85994,0.000148,2]
[323378876,1713953445336,-278.85994,0.000148,2]
[323378877,1713953445346,-278.85994,0.000148,2]
[323378878,1713953445355,-278.85994,0.000148,2]
[323378879,1713953445365,-278.85994,0.000148,2]
[323378880,1713953445374,-278.859938,0.000148,2]
[323378881,1713953445383,-219.651066,0.000148,2]
[323378882,1713953445394,-219.651066,0.000148,2]
[323378883,1713953445404,-219.651066,0.000148,2]
[323378884,1713953445414,-219.651066,0.000148,2]
[323378885,1713953445425,-219.651066,0.000148,2]
[323378886,1713953445435,-219.651066,0.000148,2]
[323378887,1713953445444,-219.651066,0.000148,2]
[323378888,1713953445454,-219.651066,0.000148,2]
[323378889,1713953445463,-219.651066,0.000148,2]
[323378890,1713953445472,-151.0,0.000148,2]
[323378891,1713953445481,-219.651066,0.000148,2]
[323378892,1713953445494,-219.651066,0.000148,2]
[323378893,1713953445503,-151.0,0.000148,2]
[323378894,1713953445512,-151.0,0.000148,2]
[323378896,1713953445521,-219.651066,0.000148,2]
[323378897,1713953445532,-151.0,0.000148,2]
[323378898,1713953445541,-219.651066,0.000148,2]
[323378899,1713953445550,-151.0,0.000148,2]
[323378900,1713953445559,-151.0,0.000148,2]
[323378901,1713953445569,-151.0,0.000148,2]
[323378902,1713953445578,-151.0,0.000148,2]
[323378903,1713953445588,-219.165401,0.000148,2]
[323378904,1713953445597,-219.651066,0.000148,2]
[323378905,1713953445607,-219.651066,0.000148,2]
[323378906,1713953445616,-219.651066,0.000148,2]
[323378907,1713953445625,-219.651066,0.000148,2]
[323378908,1713953445634,-219.651066,0.000148,2]
[323378909,1713953445643,-219.651066,0.000148,2]
[323378910,1713953445653,-219.651065,0.000148,2]
[323378912,1713953445662,-1389.587346,0.000148,2]
[323378914,1713953445672,-1389.587346,0.000148,2]
[323378915,1713953445681,-1389.587346,0.000148,2]
[323378917,1713953445691,-1389.587346,0.000148,2]
[323378918,1713953445701,-1389.587346,0.000148,2]
[323378919,1713953445710,-1389.587346,0.000148,2]
[323378920,1713953445719,-1389.587346,0.000148,2]
[323378921,1713953445729,-1389.587346,0.000148,2]
[323378922,1713953445739,-1389.587346,0.000148,2]
[323378923,1713953445749,-1389.587346,0.000148,2]
[323378924,1713953445758,-1389.587346,0.000148,2]
[323378925,1713953445767,-1389.587346,0.000148,2]
[323378926,1713953445776,-1389.587346,0.000148,2]
[323378927,1713953445784,-1389.587346,0.000148,2]
[323378928,1713953445794,-1389.587346,0.000148,2]
[323378930,1713953445803,-1389.587346,0.000148,2]
[323378932,1713953445813,-1389.587346,0.000148,2]
[323378934,1713953445827,-1389.587342,0.000148,2]
[323378935,1713953445836,-151.0,0.000148,2]
[323378936,1713953445845,-151.0,0.000148,2]
[323378937,1713953445856,-151.0,0.000148,2]
[323378939,1713953445866,-151.0,0.000148,2]
[323378940,1713953445876,-153.96791,0.000148,2]
[323378941,1713953445885,-151.0,0.000148,2]
[323378942,1713953445895,-1197.130504,0.000148,2]
[323378943,1713953445904,-1197.130504,0.000148,2]
[323378944,1713953445914,-1197.130504,0.000148,2]
[323378946,1713953445922,-1197.130504,0.000148,2]
[323378948,1713953445932,-1197.130504,0.000148,2]
[323378949,1713953445941,-1197.130504,0.000148,2]
[323378950,1713953445950,-1197.130504,0.000148,2]
[323378951,1713953445959,-1197.130504,0.000148,2]
[323378952,1713953445969,-1197.130504,0.000148,2]
[323378954,1713953445978,-1197.130504,0.000148,2]
[323378955,1713953445988,-1197.130504,0.000148,2]
[323378956,1713953445997,-1197.130504,0.000148,2]
[323378957,1713953446006,-1197.130504,0.000148,2]
[323378958,1713953446015,-1197.130504,0.000148,2]
[323378959,1713953446025,-1197.130504,0.000148,2]
[323378961,1713953446034,-1197.130504,0.000148,2]
[323378962,1713953446043,-1197.130504,0.000148,2]
[323378964,1713953446052,-1197.130504,0.000148,2]
[323378965,1713953446060,-1197.130504,0.000148,2]
[323378966,1713953446069,-1197.130508,0.000148,2]
[323378967,1713953446078,-203.455536,0.000148,2]
[323378968,1713953446087,-203.455536,0.000148,2]
[323378969,1713953446096,-203.455536,0.000148,2]
[323378970,1713953446105,-203.455536,0.000148,2]
[323378971,1713953446113,-203.455536,0.000148,2]
[323378972,1713953446122,-203.455536,0.000148,2]
[323378973,1713953446131,-203.455536,0.000148,2]
[323378974,1713953446139,-203.455536,0.000148,2]
[323378975,1713953446148,-203.455536,0.000148,2]
[323378976,1713953446157,-203.455536,0.000148,2]
[323378977,1713953446166,-203.455536,0.000148,2]
[323378978,1713953446175,-203.455536,0.000148,2]
[323378979,1713953446183,-203.455536,0.000148,2]
[323378980,1713953446192,-203.455536,0.000148,2]
[323378981,1713953446201,-203.455536,0.000148,2]
[323378982,1713953446210,-203.455536,0.000148,2]
[323378983,1713953446219,-203.455536,0.000148,2]
[323378984,1713953446227,-203.455536,0.000148,2]
[323378985,1713953446238,-203.455536,0.000148,2]
[323378986,1713953446246,-203.455527,0.000148,2]
[323378987,1713953446255,-199.386657,0.000148,2]
[323378988,1713953446264,-199.386657,0.000148,2]
[323378989,1713953446273,-851.496789,0.000148,2]
[323378990,1713953446281,-199.386657,0.000148,2]
[323378991,1713953446290,-851.496789,0.000148,2]
[323378992,1713953446298,-199.386657,0.000148,2]
[323378993,1713953446307,-851.496789,0.000148,2]
[323378994,1713953446316,-199.386657,0.000148,2]
[323378995,1713953446325,-851.496789,0.000148,2]
[323378996,1713953446333,-199.386657,0.000148,2]
[323378997,1713953446342,-199.386657,0.000148,2]
[323378998,1713953446350,-851.496789,0.000148,2]
[323378999,1713953446359,-199.386657,0.000148,2]
[323379000,1713953446368,-199.386657,0.000148,2]
[323379001,1713953446377,-199.386657,0.000148,2]
[323379003,1713953446386,-851.496789,0.000148,2]
[323379004,1713953446395,-199.386657,0.000148,2]
[323379005,1713953446405,-851.496789,0.000148,2]
[323379006,1713953446414,-199.386657,0.000148,2]
[323379007,1713953446423,-199.386657,0.000148,2]
[323379008,1713953446432,-199.386657,0.000148,2]
[323379009,1713953446442,-851.496789,0.000148,2]
[323379010,1713953446451,-199.386657,0.000148,2]
[323379011,1713953446460,-851.496789,0.000148,2]
[323379012,1713953446469,-199.386657,0.000148,2]
[323379013,1713953446478,-199.386657,0.000148,2]
[323379014,1713953446487,-199.386657,0.000148,2]
[323379015,1713953446497,-851.496789,0.000148,2]
[323379016,1713953446506,-199.386657,0.000148,2]
[323379017,1713953446515,-851.496789,0.000148,2]
[323379018,1713953446525,-199.386666,0.000148,2]
[323379019,1713953446534,-851.496789,0.000148,2]
[323379020,1713953446543,-851.496789,0.000148,2]
[323379021,1713953446552,-851.496789,0.000148,2]
[323379022,1713953446561,-851.496789,0.000148,2]
[323379023,1713953446570,-851.496789,0.000148,2]
[323379024,1713953446579,-851.496789,0.000148,2]
[323379025,1713953446588,-851.496789,0.000148,2]
[323379026,1713953446598,-851.496789,0.000148,2]
[323379027,1713953446607,-851.496783,0.000148,2]
[323379028,1713953446616,-223.835707,0.000148,2]
[323379029,1713953446625,-151.0,0.000148,2]
[323379030,1713953446634,-975.851145,0.000148,2]
[323379031,1713953446644,-151.0,0.000148,2]
[323379032,1713953446653,-975.851145,0.000148,2]
[323379033,1713953446662,-151.0,0.000148,2]
[323379034,1713953446671,-975.851145,0.000148,2]
[323379035,1713953446680,-151.0,0.000148,2]
[323379036,1713953446691,-975.851145,0.000148,2]
[323379037,1713953446701,-151.0,0.000148,2]
[323379038,1713953446710,-975.851145,0.000148,2]
[323379039,1713953446719,-975.851145,0.000148,2]
[323379040,1713953446728,-151.0,0.000148,2]
[323379041,1713953446737,-975.851145,0.000148,2]
[323379042,1713953446746,-975.851145,0.000148,2]
[323379043,1713953446756,-158.249862,0.000148,2]
[323379044,1713953446765,-975.851145,0.000148,2]
[323379045,1713953446774,-975.851145,0.000148,2]
[323379046,1713953446784,-975.851145,0.000148,2]
[323379047,1713953446793,-975.851145,0.000148,2]
[323379048,1713953446802,-975.851145,0.000148,2]
[323379049,1713953446812,-975.851145,0.000148,2]
[323379050,1713953446822,-975.851145,0.000148,2]
[323379051,1713953446833,-975.851145,0.000148,2]
[323379052,1713953446844,-975.851145,0.000148,2]
[323379053,1713953446853,-975.851145,0.000148,2]
[323379054,1713953446863,-975.851145,0.000148,2]
[323379055,1713953446874,-975.851153,0.000148,2]
[323379056,1713953447006,-1182.47584,0.000148,2]
[323379057,1713953447015,-1182.47584,0.000148,2]
[323379058,1713953447025,-1182.47584,0.000148,2]
[323379059,1713953447034,-1182.47584,0.000148,2]
[323379060,1713953447045,-1182.47584,0.000148,2]
[323379061,1713953447056,-1182.47584,0.000148,2]
[323379062,1713953447065,-1182.47584,0.000148,2]
[323379063,1713953447075,-1182.47584,0.000148,2]
[323379064,1713953447084,-1182.47584,0.000148,2]
[323379065,1713953447093,-1182.47584,0.000148,2]
[323379066,1713953447102,-1182.47584,0.000148,2]
[323379067,1713953447112,-1182.47584,0.000148,2]
[323379068,1713953447121,-1182.47584,0.000148,2]
[323379069,1713953447130,-1182.47584,0.000148,2]
[323379070,1713953447139,-1182.47584,0.000148,2]
[323379071,1713953447148,-1182.47584,0.000148,2]
[323379072,1713953447157,-1182.47584,0.000148,2]
[323379073,1713953447166,-151.0,0.000148,2]
[323379074,1713953447175,-1182.47584,0.000148,2]
[323379075,1713953447184,-151.0,0.000148,2]
[323379076,1713953447194,-1182.47584,0.000148,2]
[323379077,1713953447203,-151.0,0.000148,2]
[323379078,1713953447212,-151.0,0.000148,2]
[323379079,1713953447221,-1182.475847,0.000148,2]
[323379080,1713953447230,-151.0,0.000148,2]
[323379081,1713953447240,-151.0,0.000148,2]
[323379082,1713953447249,-151.0,0.000148,2]
[323379083,1713953447258,-151.0,0.000148,2]
[323379084,1713953447267,-151.0,0.000148,2]
[323379085,1713953447276,-151.0,0.000148,2]
[323379086,1713953447285,-151.0,0.000148,2]
[323379087,1713953447294,-151.0,0.000148,2]
[323379088,1713953447304,-151.0,0.000148,2]
[323379089,1713953447313,-151.0,0.000148,2]
[323379090,1713953447322,-151.0,0.000148,2]
[323379091,1713953447331,-155.855352,0.000148,2]
[323379092,1713953447341,-6773.07404,0.000148,2]
[323379093,1713953447350,-6773.07404,0.000148,2]
[323379094,1713953447359,-6773.07404,0.000148,2]
[323379095,1713953447368,-6773.07404,0.000148,2]
[323379096,1713953447378,-6773.07404,0.000148,2]
[323379097,1713953447387,-6773.07404,0.000148,2]
[323379098,1713953447396,-6773.07404,0.000148,2]
[323379099,1713953447406,-6773.07404,0.000148,2]
[323379100,1713953447415,-6773.07404,0.000148,2]
[323379101,1713953447426,-6773.07404,0.000148,2]
[323379102,1713953447436,-6773.07404,0.000148,2]
[323379103,1713953447445,-6773.07404,0.000148,2]
[323379104,1713953447454,-6773.07404,0.000148,2]
[323379105,1713953447463,-6773.07404,0.000148,2]
[323379106,1713953447472,-6773.07404,0.000148,2]
[323379107,1713953447482,-6773.07404,0.000148,2]
[323379108,1713953447492,-6773.07404,0.000148,2]
[323379109,1713953447501,-6773.07404,0.000148,2]
[323379110,1713953447510,-6773.07404,0.000148,2]
[323379111,1713953447520,-6773.074038,0.000148,2]
[323379112,1713953447529,-584.061582,0.000148,2]
[323379113,1713953447538,-584.061582,0.000148,2]
[323379114,1713953447548,-584.061582,0.000148,2]
[323379115,1713953447557,-584.061582,0.000148,2]
[323379116,1713953447567,-584.061582,0.000148,2]
[323379117,1713953447576,-584.061582,0.000148,2]
[323379118,1713953447585,-584.061582,0.000148,2]
[323379119,1713953447595,-584.061582,0.000148,2]
[323379120,1713953447605,-584.061582,0.000148,2]
[323379121,1713953447614,-584.061582,0.000148,2]
[323379122,1713953447624,-584.061582,0.000148,2]
[323379123,1713953447634,-584.061582,0.000148,2]
[323379124,1713953447643,-584.061582,0.000148,2]
[323379125,1713953447652,-584.061582,0.000148,2]
[323379126,1713953447661,-584.061582,0.000148,2]
[323379127,1713953447671,-584.061582,0.000148,2]
[323379128,1713953447679,-584.061582,0.000148,2]
[323379129,1713953447689,-584.061582,0.000148,2]
[323379130,1713953447698,-584.061582,0.000148,2]
[323379131,1713953447707,-584.061578,0.000148,2]
[323379132,1713953447717,-151.0,0.000148,2]
[323379133,1713953447726,-151.0,0.000148,2]
[323379134,1713953447735,-151.0,0.000148,2]
[323379135,1713953447744,-151.0,0.000148,2]
[323379136,1713953447754,-151.0,0.000148,2]
[323379137,1713953447763,-151.0,0.000148,2]
[323379138,1713953447772,-151.0,0.000148,2]
[323379139,1713953447781,-151.0,0.000148,2]
[323379140,1713953447790,-151.0,0.000148,2]
[323379141,1713953447803,-151.0,0.000148,2]
[323379142,1713953447812,-151.0,0.000148,2]
[323379143,1713953447824,-151.0,0.000148,2]
[323379144,1713953447834,-158.3433,0.000148,2]
[323379145,1713953447843,-5707.61815,0.000148,2]
[323379146,1713953447855,-5707.61815,0.000148,2]
[323379147,1713953447865,-5707.61815,0.000148,2]
[323379148,1713953447875,-5707.61815,0.000148,2]
[323379149,1713953447884,-5707.61815,0.000148,2]
[323379150,1713953447893,-5707.61815,0.000148,2]
[323379151,1713953447904,-5707.61815,0.000148,2]
[323379152,1713953447914,-5707.61815,0.000148,2]
[323379153,1713953447922,-5707.61815,0.000148,2]
[323379154,1713953447931,-5707.61815,0.000148,2]
[323379155,1713953447943,-5707.61815,0.000148,2]
[323379156,1713953447952,-5707.61815,0.000148,2]
[323379157,1713953447961,-5360.099985,0.000148,2]
[323379158,1713953447988,-347.518165,0.000148,2]
[323379159,1713953447997,-5707.61815,0.000148,2]
[323379160,1713953448006,-5707.61815,0.000148,2]
[323379161,1713953448015,-5707.61815,0.000148,2]
[323379162,1713953448025,-5707.61815,0.000148,2]
[323379163,1713953448034,-5707.61815,0.000148,2]
[323379164,1713953448044,-5707.61815,0.000148,2]
[323379165,1713953448053,-5707.618158,0.000148,2]
[323379166,1713953448062,-1678.419713,0.000148,2]
[323379167,1713953448075,-1678.419713,0.000148,2]
[323379168,1713953448084,-1678.419713,0.000148,2]
[323379169,1713953448094,-1678.419713,0.000148,2]
[323379170,1713953448103,-1678.419713,0.000148,2]
[323379171,1713953448112,-1678.419713,0.000148,2]
[323379172,1713953448121,-1678.419713,0.000148,2]
[323379173,1713953448130,-1678.419713,0.000148,2]
[323379174,1713953448139,-1678.419713,0.000148,2]
[323379175,1713953448148,-1678.419713,0.000148,2]
[323379176,1713953448157,-1678.419713,0.000148,2]
[323379177,1713953448166,-1678.419713,0.000148,2]
[323379178,1713953448175,-1678.419713,0.000148,2]
[323379179,1713953448184,-1678.419713,0.000148,2]
[323379180,1713953448194,-913.444177,0.000148,2]
[323379181,1713953448203,-913.444177,0.000148,2]
[323379182,1713953448212,-913.444177,0.000148,2]
[323379183,1713953448222,-913.444177,0.000148,2]
[323379184,1713953448231,-913.444177,0.000148,2]
[323379185,1713953448242,-913.444177,0.000148,2]
[323379186,1713953448251,-913.444177,0.000148,2]
[323379187,1713953448261,-913.444177,0.000148,2]
[323379188,1713953448271,-913.444177,0.000148,2]
[323379189,1713953448281,-637.448154,0.000148,2]
[323379190,1713953448290,-637.448154,0.000148,2]
[323379191,1713953448299,-637.448154,0.000148,2]
[323379192,1713953448308,-637.448154,0.000148,2]
[323379193,1713953448317,-637.448154,0.000148,2]
[323379194,1713953448327,-637.448154,0.000148,2]
[323379195,1713953448336,-637.448154,0.000148,2]
[323379196,1713953448346,-637.448154,0.000148,2]
[323379197,1713953448355,-637.448154,0.000148,2]
[323379198,1713953448364,-913.444177,0.000148,2]
[323379199,1713953448373,-637.448154,0.000148,2]
[323379200,1713953448383,-913.444177,0.000148,2]
[323379201,1713953448392,-637.448154,0.000148,2]
[323379202,1713953448401,-913.444177,0.000148,2]
[323379203,1713953448410,-537.11863076,0.000148,2]
[323379204,1713953448904,-720.334455,0.00011519,2]
[323379205,1713953448919,-781.5725001,0.00011519,2]
[323379206,1713953449110,157.40840157,0.0001,2]
[323379207,1713953449687,-1325.2,0.00011518,2]
[323379208,1713953452669,1678.96711435,9.999e-05,2]
[323379217,1713954400061,24900.0,0.00010613,2]
[323379218,1713954573801,729.48680207,0.00010613,2]
[323379257,1713954632324,-1057.20199727,0.00011443,2]
[323379258,1713954632334,-472.01022916,0.00011444,2]
[323379259,1713954632343,-495.4021727,0.00011445,2]
[323379260,1713954632353,-1578.51528846,0.00011445,2]
[323379262,1713954632362,-1575.31939472,0.00011445,2]
[323379264,1713954632371,-549.6120096,0.00011446,2]
[323379266,1713954632381,-1890.36328834,0.00011447,2]
[323379268,1713954632390,-1394.68761216,0.00011448,2]
[323379270,1713954632400,-300.0,0.00011449,2]
[323379272,1713954632409,-623.76983629,0.00011456,2]
[323379274,1713954632418,-565.64865484,0.00011518,2]
[323379276,1713954632428,-808.33955252,0.00011518,2]
[323379278,1713954632437,-1302.78364551,0.00011518,2]
[323379280,1713954632446,-206.8668297,0.00011518,2]
[323379282,1713954632456,-4315.95958717,0.00011519,2]
[323379284,1713954632465,-329.45511241,0.00011519,2]
[323379286,1713954632474,-420.0,0.00012594,2]
[323379288,1713954632484,-2673.90645662,0.00013699,2]
[323379291,1713954632495,-921.19357038,0.00013699,2]
[323379292,1713954632504,-352.536878,0.00013699,2]
[323379294,1713954632517,-587.0,0.00013853,2]
[323379296,1713954632526,-927.87368973,0.00014,2]
[323379298,1713954632536,-153.0,0.00014252,2]
[323379299,1713954632545,-153.43131253,0.00014651,2]
[323379300,1713954632554,-300.0,0.00014728,2]
[323379301,1713954632563,-1620.16401568,0.00014796,2]
[323379302,1713954632572,-203.84630574,0.00014796,2]
[323379303,1713954632582,-936.63840562,0.00014796,2]
[323379304,1713954632591,-174.05762084,0.00014796,2]
[323379518,1713954646536,-153.43131253,0.00014651,2]
[323379519,1713954646545,-33.83377429,0.00014796,2]
[323379520,1713954646557,-84.61181912,0.00014796,2]
[323379594,1713955640333,931.4354149,0.00010525,2]
[323379600,1713955832540,-549.6120096,0.00011248,2]
[323379601,1713955832550,-1575.31939472,0.00011249,2]
[323379602,1713955832562,-1890.36328834,0.0001125,2]
[323379603,1713955832571,-300.0,0.00011256,2]
[323379604,1713955832580,-300.0,0.00011256,2]
[323379605,1713955832590,-19228.1515642,0.00011257,2]
[323379606,1713955832600,-250.0,0.00011456,2]
[323379607,1713955832611,-3291.87654583,0.00011755,2]
[323379608,1713955832623,-154.84515485,0.00011756,2]
[323379609,1713955832633,-572.8530769,0.00011895,2]
[323379610,1713955832643,-15915.682996,0.00012113,2]
[323379611,1713955832652,-420.0,0.00012366,2]
[323379612,1713955832662,-420.0,0.00012381,2]
[323379613,1713955832672,-1131.7504978,0.00012462,2]
[323379614,1713955832681,-724.38854265,0.00013226,2]
[323379615,1713955832690,-587.0,0.00013585,2]
[323379616,1713955832700,-587.0,0.00013619,2]
[323379617,1713955832710,-1797.550013,0.00013699,2]
[323379618,1713955832719,-927.87368973,0.00014,2]
[323379619,1713955832728,-620.17045233,0.00014105,2]
[323379620,1713955832738,-576.69182257,0.00014496,2]
[323379632,1713955838511,-43867.30817743,0.00014496,2]
[323379633,1713955838520,-20569.69982637,0.000145,2]
[323379846,1713955840955,-536.54428684,0.000145,2]
[323379872,1713955846557,-1076.29027798,0.000145,2]
[323379873,1713955846569,-253.00915998,0.00014521,2]
[323379883,1713956079025,273.25495977,0.0001,2]
[323379884,1713956083941,2173.91495276,0.0002,120]
[323379892,1713956603204,901.85,0.000266,120]
[323379893,1713956624194,676.39,0.000266,120]
[323379894,1713956638082,507.29,0.000266,120]
[323379895,1713956663725,380.47,0.000266,120]
[323379896,1713956679390,570.7,0.000266,120]
[323379899,1713956715257,285.35,0.000266,120]
[323379900,1713956845332,285.34840863,0.000266,120]
[323380027,1713957043919,-2484.0,0.00012459,2]
[323380028,1713957043928,-1575.31939472,0.00012459,2]
[323380029,1713957043942,-1890.36328834,0.0001246,2]
[323380030,1713957043951,-355.63171415,0.00012466,2]
[323380031,1713957043960,-300.0,0.00012466,2]
[323380032,1713957043969,-40.78560279,0.000125,2]
[323380098,1713958240070,-643.18145212,0.00012365,2]
[323380100,1713958240080,-918.48419502,0.00012366,2]
[323380101,1713958240135,-656.8351997,0.00012366,2]
[323380102,1713958240144,-643.18145212,0.00012367,2]
[323380103,1713958240154,-1890.36328834,0.00012368,2]
[323380104,1713958240163,-308.54338713,0.00012368,2]
[323380105,1713958240172,-1656.0,0.00012369,2]
[323380106,1713958240181,-162.04590632,0.0001237,2]
[323380107,1713958240191,-300.0,0.0001237,2]
[323380108,1713958240200,-300.0,0.0001237,2]
[323380109,1713958240209,-4964.36769724,0.000124,2]
[323380139,1713958243220,-16096.63230276,0.000124,2]
[323380140,1713958243230,-8128.72931474,0.000125,2]
[323380141,1713958243239,-166.0,0.00013574,2]
[323380142,1713958243248,-420.0,0.00013607,2]
[323380143,1713958243257,-898.775006,0.00013699,2]
[323380144,1713958243267,-927.87368973,0.00014,2]
[323380145,1713958243276,-638.01106262,0.00014068,2]
[323380146,1713958243285,-620.00852262,0.00014069,2]
[323380147,1713958243298,-176.022956,0.00014098,2]
[323380148,1713958243308,-306.0,0.000141,2]
[323380149,1713958243317,-154.3508919,0.00014148,2]
[323380150,1713958243326,-267.62826796,0.00014195,2]
[323380151,1713958243336,-344.43188625,0.00014196,2]
[323380152,1713958243346,-176.02295598,0.00014197,2]
[323380153,1713958243355,-4434.93592542,0.00014197,2]
[323380209,1713959432180,-1575.31939472,0.00013256,2]
[323380211,1713959432189,-357.32302896,0.00013257,2]
[323380213,1713959432198,-1620.53461599,0.00013258,2]
[323380215,1713959432207,-300.0,0.00013267,2]
[323380217,1713959432216,-1095.77349914,0.00013291,2]
[323380219,1713959432225,-692.07418766,0.000134,2]
[323380270,1713959440261,-664.65,0.000134,2]
[323380494,1713960115464,399.0,0.00023,31]
[323380495,1713960199433,44218.68663861,0.000266,120]
[323380667,1713960643637,-186.16529809,0.00013164,2]
[323380669,1713960643646,-1620.53461599,0.00013165,2]
[323380671,1713960643655,-249.72997256,0.0001317,2]
[323380674,1713960643665,-300.0,0.00013296,2]
[323380677,1713960643674,-300.0,0.00013296,2]